fUST/lending_fUST_20250902
["ID","MTS","AMOUNT","RATE_DAILY","PERIOD"]
[382831755,1756749052200,-1641.95,0.00013972,2]
[382831756,1756749052210,-1433.14,0.00013972,2]
[382831757,1756749052220,-480.0,0.00013972,2]
[382831758,1756749052230,-480.0,0.00013972,2]
[382831759,1756749052240,-480.0,0.00013972,2]
[382831760,1756749052250,-1135.21,0.00013972,2]
[382831761,1756749052261,-480.0,0.00013972,2]
[382831762,1756749052272,-555.23,0.00013972,2]
[382831763,1756749052282,-480.0,0.00013972,2]
[382831764,1756749052292,-497.04,0.00013972,2]
[382831765,1756749052302,-151.0,0.00013972,2]
[382831766,1756749052312,-310.14,0.00013972,2]
[382831767,1756749052323,-1222.45,0.00013972,2]
[382831768,1756749052332,-480.0,0.00013972,2]
[382831769,1756749052342,-480.0,0.00013972,2]
[382831770,1756749052351,-633.36,0.00013972,2]
[382831771,1756749052361,-480.0,0.00013972,2]
[382831772,1756749052370,-244.99582167,0.00013972,2]
[382831773,1756749052535,-235.00417833,0.00013972,2]
[382831774,1756749052545,-480.0,0.00013972,2]
[382831775,1756749052555,-480.0,0.00013972,2]
[382831776,1756749052566,-542.75,0.00013972,2]
[382831777,1756749052575,-363.26557535,0.00013972,2]
[382831778,1756749052585,-5027.09,0.00013972,2]
[382831779,1756749052595,-480.0,0.00013972,2]
[382831780,1756749052604,-480.0,0.00013972,2]
[382831781,1756749052614,-480.0,0.00013972,2]
[382831782,1756749052623,-689.11,0.00013972,2]
[382831783,1756749052633,-636.5,0.00013972,2]
[382831784,1756749052643,-480.0,0.00013972,2]
[382831785,1756749052652,-480.0,0.00013972,2]
[382831786,1756749052662,-523.90907832,0.00013972,2]
[382831787,1756749052671,-256.19,0.00013972,2]
[382831788,1756749052681,-492.13,0.00013972,2]
[382831789,1756749052691,-480.0,0.00013972,2]
[382831790,1756749052700,-480.0,0.00013972,2]
[382831791,1756749052709,-1209.12,0.00013972,2]
[382831792,1756749052718,-480.0,0.00013972,2]
[382831793,1756749052727,-1546.45,0.00013972,2]
[382831794,1756749052737,-625.88,0.00013972,2]
[382831795,1756749052746,-480.0,0.00013972,2]
[382831796,1756749052755,-1641.93,0.00013972,2]
[382831797,1756749052765,-480.0,0.00013972,2]
[382831798,1756749052774,-310.07,0.00013972,2]
[382831799,1756749052784,-675.19,0.00013972,2]
[382831800,1756749052795,-163.48995646,0.00013972,2]
[382831801,1756749052804,-3051.95,0.00013972,2]
[382831802,1756749052814,-480.0,0.00013972,2]
[382831803,1756749052824,-480.0,0.00013972,2]
[382831804,1756749052833,-480.0,0.00013972,2]
[382831805,1756749052843,-480.0,0.00013972,2]
[382831806,1756749052853,-279.17,0.00013972,2]
[382831807,1756749052863,-480.0,0.00013972,2]
[382831808,1756749052872,-480.0,0.00013972,2]
[382831809,1756749052882,-480.0,0.00013972,2]
[382831810,1756749052891,-480.0,0.00013972,2]
[382831811,1756749052900,-480.0,0.00013972,2]
[382831812,1756749052910,-501.19,0.00013972,2]
[382831813,1756749052921,-1933.72,0.00013972,2]
[382831814,1756749052930,-480.0,0.00013972,2]
[382831815,1756749052939,-480.0,0.00013972,2]
[382831816,1756749052949,-480.0,0.00013972,2]
[382831817,1756749052958,-369.49482414,0.00013972,2]
[382831818,1756749052968,-230.6,0.00013972,2]
[382831819,1756749052978,-2234.11,0.00013972,2]
[382831820,1756749052988,-480.0,0.00013972,2]
[382831821,1756749052998,-1000.12,0.00013972,2]
[382831822,1756749053007,-480.0,0.00013972,2]
[382831823,1756749053016,-151.0,0.00013972,2]
[382831824,1756749053027,-603.56,0.00013972,2]
[382831825,1756749053040,-151.77790955,0.00013972,2]
[382831826,1756749053050,-151.0,0.00013972,2]
[382831827,1756749053060,-480.0,0.00013972,2]
[382831828,1756749053071,-650.74,0.00013972,2]
[382831829,1756749053080,-480.0,0.00013972,2]
[382831830,1756749053090,-292.650676,0.00013972,2]
[382831831,1756749053100,-480.0,0.00013972,2]
[382831832,1756749053111,-665.86,0.00013972,2]
[382831833,1756749053123,-292.650676,0.00013972,2]
[382831834,1756749053132,-480.0,0.00013972,2]
[382831835,1756749053142,-480.0,0.00013972,2]
[382831836,1756749053152,-292.650676,0.00013972,2]
[382831837,1756749053162,-151.0,0.00013972,2]
[382831838,1756749053171,-480.0,0.00013972,2]
[382831839,1756749053181,-480.0,0.00013972,2]
[382831840,1756749053192,-292.650668,0.00013972,2]
[382831841,1756749053202,-483.27,0.00013972,2]
[382831842,1756749053212,-480.0,0.00013972,2]
[382831843,1756749053223,-310.98,0.00013972,2]
[382831844,1756749053232,-1479.97,0.00013972,2]
[382831845,1756749053242,-151.0,0.00013972,2]
[382831846,1756749053252,-482.04,0.00013972,2]
[382831847,1756749053261,-151.0,0.00013972,2]
[382831848,1756749053271,-573.74,0.00013972,2]
[382831849,1756749053281,-169.14,0.00013995,2]
[382831850,1756749053291,-151.0,0.00014,2]
[382831851,1756749053300,-155.0481722,0.00014,2]
[382831852,1756749053310,-1398.13160885,0.0001404,2]
[382831853,1756749053323,-419.28094227,0.0001404,2]
[382831854,1756749053335,-1182.58744888,0.0001404,2]
[382831855,1756749053344,-151.0,0.000141,2]
[382831856,1756749053354,-651.28118338,0.0001419,2]
[382831857,1756749053363,-151.0,0.000142,2]
[382831858,1756749053373,-500.0,0.00014211,2]
[382831859,1756749053382,-500.0,0.00014211,2]
[382831860,1756749053392,-500.0,0.00014211,2]
[382831861,1756749053401,-500.0,0.00014211,2]
[382831862,1756749053411,-500.0,0.00014211,2]
[382831863,1756749053420,-500.0,0.00014211,2]
[382831864,1756749053429,-334.62071561,0.00014221,2]
[382831865,1756749053441,-665.37928439,0.00014221,2]
[382831866,1756749053451,-1000.0,0.00014221,2]
[382831867,1756749053460,-1000.0,0.00014221,2]
[382831868,1756749053469,-500.0,0.00014224,2]
[382831869,1756749053479,-500.0,0.00014224,2]
[382831870,1756749053488,-500.0,0.00014224,2]
[382831871,1756749053497,-500.0,0.00014224,2]
[382831872,1756749053507,-500.0,0.00014224,2]
[382831873,1756749053517,-500.0,0.00014225,2]
[382831874,1756749053526,-500.0,0.00014227,2]
[382831875,1756749053536,-500.0,0.00014227,2]
[382831876,1756749053546,-364.90184372,0.00014227,2]
[382831877,1756749053555,-645.0,0.00014246,2]
[382831878,1756749053564,-480.0,0.00014246,2]
[382831879,1756749053574,-317.71849653,0.00014246,2]
[382831880,1756749053583,-480.0,0.00014246,2]
[382831881,1756749053592,-480.0,0.00014246,2]
[382831882,1756749053602,-480.0,0.00014246,2]
[382831883,1756749053611,-526.18010928,0.00014246,2]
[382831884,1756749053620,-480.0,0.00014246,2]
[382831885,1756749053630,-480.0,0.00014246,2]
[382831886,1756749053639,-480.0,0.00014246,2]
[382831887,1756749053649,-480.0,0.00014246,2]
[382831888,1756749053658,-690.55,0.00014246,2]
[382831889,1756749053667,-480.0,0.00014246,2]
[382831890,1756749053677,-480.0,0.00014246,2]
[382831891,1756749053687,-480.0,0.00014246,2]
[382831892,1756749053696,-480.0,0.00014246,2]
[382831893,1756749053706,-295.31497881,0.00014246,2]
[382831894,1756749053718,-184.68502119,0.00014246,2]
[382831895,1756749053727,-480.0,0.00014246,2]
[382831896,1756749053738,-426.99579247,0.00014246,2]
[382831897,1756749053748,-480.0,0.00014246,2]
[382831898,1756749053758,-480.0,0.00014246,2]
[382831899,1756749053768,-480.0,0.00014246,2]
[382831900,1756749053777,-480.0,0.00014246,2]
[382831901,1756749053786,-590.85,0.00014246,2]
[382831902,1756749053796,-480.0,0.00014246,2]
[382831903,1756749053806,-480.0,0.00014246,2]
[382831904,1756749053815,-480.0,0.00014246,2]
[382831905,1756749053825,-486.02,0.00014246,2]
[382831906,1756749053835,-236.94794204,0.00014246,2]
[382831907,1756749053844,-480.0,0.00014246,2]
[382831908,1756749053854,-480.0,0.00014246,2]
[382831909,1756749053863,-480.0,0.00014246,2]
[382831910,1756749053873,-480.0,0.00014246,2]
[382831911,1756749053882,-480.0,0.00014246,2]
[382831912,1756749053891,-480.0,0.00014246,2]
[382831913,1756749053901,-480.0,0.00014246,2]
[382831914,1756749053910,-596.87,0.00014246,2]
[382831915,1756749053920,-480.0,0.00014246,2]
[382831916,1756749053929,-480.0,0.00014246,2]
[382831917,1756749053939,-30.09915225,0.00014246,2]
[382831928,1756749207700,168.0,8.3e-07,2]
[382831938,1756750232690,-1413.49102493,0.00013009,2]
[382831940,1756750232700,-109.6633328,0.0001314,2]
[382831941,1756750232712,-1303.82769213,0.0001314,2]
[382831943,1756750232722,-1200.0,0.00013195,2]
[382831944,1756750232735,-565.65445671,0.00013196,2]
[382831946,1756750232748,-634.34554329,0.00013196,2]
[382831948,1756750232757,-300.0,0.00013196,2]
[382831950,1756750232767,-193.21096611,0.00013197,2]
[382831952,1756750232778,-500.0,0.00013197,2]
[382831953,1756750232787,-639.70663765,0.00013197,2]
[382831955,1756750232797,-500.0,0.00013197,2]
[382831957,1756750232807,-500.0,0.00013197,2]
[382831959,1756750232817,-500.0,0.00013197,2]
[382831961,1756750232826,-500.0,0.00013197,2]
[382831962,1756750232836,-500.0,0.00013197,2]
[382831963,1756750232847,-500.0,0.00013197,2]
[382831964,1756750232856,-500.0,0.00013197,2]
[382831965,1756750232865,-500.0,0.00013197,2]
[382831966,1756750232875,-491.09966679,0.00013197,2]
[382831967,1756750232884,-373.36982977,0.00013197,2]
[382831968,1756750232894,-500.0,0.00013197,2]
[382831969,1756750232903,-353.87523,0.00013197,2]
[382831970,1756750232913,-500.0,0.00013197,2]
[382831971,1756750232923,-587.34953461,0.00013197,2]
[382831972,1756750232932,-500.0,0.00013197,2]
[382831973,1756750232941,-500.0,0.00013197,2]
[382831974,1756750232951,-500.0,0.00013197,2]
[382831975,1756750232960,-500.0,0.00013197,2]
[382831976,1756750232969,-500.0,0.00013197,2]
[382831977,1756750232978,-325.56752611,0.00013197,2]
[382831978,1756750232987,-500.0,0.00013197,2]
[382831979,1756750232996,-500.0,0.00013197,2]
[382831980,1756750233007,-500.0,0.00013197,2]
[382831981,1756750233016,-500.0,0.00013197,2]
[382831982,1756750233026,-239.88106416,0.00013197,2]
[382831983,1756750233036,-500.0,0.00013197,2]
[382831984,1756750233046,-500.0,0.00013197,2]
[382831985,1756750233057,-500.0,0.00013197,2]
[382831986,1756750233070,-173.72927206,0.00013197,2]
[382831987,1756750233080,-118677.36837886,0.00013198,2]
[382831988,1756750233098,-418.22366975,0.00013198,2]
[382832024,1756750238569,-994.45138746,0.00013198,2]
[382832026,1756750238581,-644.02348662,0.00013198,2]
[382832030,1756750238623,-1457.6793555,0.00013198,2]
[382832031,1756750238635,-5940.92269438,0.00013198,2]
[382832073,1756750240785,-360.12074999,0.00013198,2]
[382832129,1756750246902,-3125.69343367,0.00013198,2]
[382832130,1756750246914,-2310.02802736,0.00013198,2]
[382832131,1756750282776,5000.0,0.00012935,2]
[382832132,1756750291240,3332.01,0.00012935,2]
[382832133,1756750291264,1667.99,0.00012935,2]
[382832185,1756750664878,250.0,0.00012967,2]
[382832186,1756750674027,250.0,0.00012967,2]
[382832188,1756750691111,250.0,0.00012967,2]
[382832189,1756750699458,250.0,0.00012967,2]
[382832190,1756750715292,250.0,0.00012967,2]
[382832191,1756750723081,250.0,0.00012967,2]
[382832192,1756750737745,250.0,0.00012967,2]
[382832193,1756750746244,250.0,0.00012967,2]
[382832194,1756750762316,250.0,0.00012967,2]
[382832195,1756750771316,250.0,0.00012967,2]
[382832196,1756750788306,250.0,0.00012967,2]
[382832197,1756750797150,250.0,0.00012967,2]
[382832198,1756750813996,250.0,0.00012967,2]
[382832199,1756750821822,250.0,0.00012967,2]
[382832200,1756750838307,250.0,0.00012967,2]
[382832201,1756750847726,250.0,0.00012967,2]
[382832202,1756750857501,250.0,0.00012967,2]
[382832203,1756750865952,250.0,0.00012981,2]
[382832204,1756750875204,250.0,0.00012981,2]
[382832205,1756750883635,250.0,0.00012981,2]
[382832206,1756750894523,250.0,0.00012981,2]
[382832207,1756750908062,250.0,0.00012981,2]
[382832208,1756750919014,250.0,0.00012981,2]
[382832209,1756750928562,250.0,0.00012981,2]
[382832210,1756750937168,250.0,0.00012981,2]
[382832211,1756750942484,-9900.68366506,0.00013,2]
[382832212,1756750942498,-10000.01,0.00013,2]
[382832213,1756750942586,-10000.01,0.00013,2]
[382832214,1756750942715,-10000.01,0.00013,2]
[382832215,1756750942843,-10000.01,0.00013,2]
[382832216,1756750943081,-10000.01,0.00013,2]
[382832217,1756750943253,-10000.01,0.00013,2]
[382832218,1756750945135,17836.50897507,0.0001287,2]
[382832219,1756750953214,10000.01,0.0001287,2]
[382832220,1756750953240,10000.01,0.0001287,2]
[382832221,1756750953263,10000.01,0.0001287,2]
[382832222,1756750953286,5851.87087009,0.0001287,2]
[382832223,1756750954445,463.7476969,0.00012999,2]
[382832224,1756750961163,3684.39143301,0.0001287,2]
[382832225,1756750961185,3565.60856699,0.0001287,2]
[382832226,1756750961936,6434.40143301,0.00012,2]
[382832227,1756750961960,10000.01,0.00012,2]
[382832228,1756750961978,10000.01,0.00012,2]
[382832229,1756750961998,10000.01,0.00012,2]
[382832230,1756750962017,10000.01,0.00012,2]
[382832231,1756750962037,3664.93490193,0.00012,2]
[382832232,1756750969099,1754.77009705,0.00012,2]
[382832242,1756751286961,250.0,0.00012949,2]
[382832317,1756751437799,-398.04150106,0.00013239,2]
[382832318,1756751437811,-801.95849894,0.00013239,2]
[382832319,1756751437820,-67.00110104,0.00013239,2]
[382832320,1756751437832,-232.99889896,0.00013239,2]
[382832321,1756751437842,-1200.0,0.00013239,2]
[382832322,1756751437851,-300.0,0.00013239,2]
[382832323,1756751437861,-500.0,0.0001324,2]
[382832324,1756751437871,-500.0,0.0001324,2]
[382832325,1756751437880,-500.0,0.0001324,2]
[382832326,1756751437891,-500.0,0.0001324,2]
[382832327,1756751437900,-73.8725732,0.0001324,2]
[382832328,1756751437914,-426.1274268,0.0001324,2]
[382832330,1756751437923,-500.0,0.0001324,2]
[382832332,1756751437933,-500.0,0.0001324,2]
[382832333,1756751437942,-500.0,0.0001324,2]
[382832335,1756751437951,-500.0,0.0001324,2]
[382832336,1756751437960,-500.0,0.0001324,2]
[382832337,1756751437969,-300.0,0.00013461,2]
[382832338,1756751437978,-300.0,0.00013461,2]
[382832339,1756751437987,-300.0,0.00013461,2]
[382832340,1756751437997,-300.0,0.00013461,2]
[382832341,1756751438006,-300.0,0.00013461,2]
[382832342,1756751438015,-300.0,0.00013461,2]
[382832343,1756751438024,-300.0,0.00013461,2]
[382832344,1756751438034,-300.0,0.00013461,2]
[382832345,1756751438043,-300.0,0.00013461,2]
[382832346,1756751438058,-300.0,0.00013461,2]
[382832347,1756751438068,-300.0,0.00013461,2]
[382832348,1756751438077,-300.0,0.00013461,2]
[382832349,1756751438087,-300.0,0.00013461,2]
[382832350,1756751438097,-300.0,0.00013461,2]
[382832351,1756751438106,-300.0,0.00013461,2]
[382832352,1756751438115,-600.0,0.00013461,2]
[382832353,1756751438125,-1236.80464677,0.00013498,2]
[382832354,1756751438135,-162.82029586,0.00013499,2]
[382832355,1756751438146,-187.78006525,0.0001359,2]
[382832356,1756751438155,-151.0,0.0001359,2]
[382832357,1756751438164,-1000.0,0.00013597,2]
[382832358,1756751438174,-500.0,0.00013597,2]
[382832359,1756751438184,-500.0,0.00013597,2]
[382832360,1756751438194,-547.79464635,0.00013597,2]
[382832361,1756751438203,-500.0,0.00013597,2]
[382832362,1756751438213,-500.0,0.00013597,2]
[382832363,1756751438222,-6236.06014732,0.00013598,2]
[382832364,1756751438234,-6039.15561485,0.00013598,2]
[382832365,1756751438245,-16348.92825403,0.00013598,2]
[382832392,1756751440126,-257.50000006,0.00013598,2]
[382832405,1756751443032,-2179.54910721,0.00013598,2]
[382832435,1756751446063,-3344.23959532,0.00013598,2]
[382832583,1756751633764,369.0630598,0.00027397,120]
[382832623,1756752632104,-1106.53338086,0.00013262,2]
[382832625,1756752632115,-1200.0,0.00013396,2]
[382832627,1756752632124,-300.0,0.00013396,2]
[382832629,1756752632134,-1200.0,0.00013396,2]
[382832631,1756752632143,-631.57138538,0.00013397,2]
[382832633,1756752632154,-3855.32146968,0.00013397,2]
[382832635,1756752632171,-1880.000005,0.00013397,2]
[382832636,1756752632182,-664.44,0.00013397,2]
[382832752,1756752638032,-12411.21645621,0.00013397,2]
[382832754,1756752638042,-500.0,0.00013443,2]
[382832756,1756752638052,-500.0,0.00013443,2]
[382832759,1756752638061,-500.0,0.00013443,2]
[382832761,1756752638071,-500.0,0.00013443,2]
[382832763,1756752638080,-500.0,0.00013443,2]
[382832765,1756752638090,-500.0,0.00013443,2]
[382832767,1756752638099,-500.0,0.00013443,2]
[382832769,1756752638109,-500.0,0.00013443,2]
[382832772,1756752638118,-500.0,0.00013443,2]
[382832775,1756752638128,-500.0,0.00013443,2]
[382832777,1756752638138,-500.0,0.00013443,2]
[382832779,1756752638147,-500.0,0.00013443,2]
[382832781,1756752638156,-500.0,0.00013443,2]
[382832783,1756752638166,-500.0,0.00013443,2]
[382832785,1756752638175,-500.0,0.00013443,2]
[382832787,1756752638185,-500.0,0.00013443,2]
[382832789,1756752638194,-500.0,0.00013443,2]
[382832791,1756752638204,-500.0,0.00013443,2]
[382832793,1756752638214,-584.93460656,0.00013443,2]
[382832795,1756752638223,-500.0,0.00013443,2]
[382832797,1756752638232,-500.0,0.00013443,2]
[382832799,1756752638241,-500.0,0.00013443,2]
[382832801,1756752638250,-500.0,0.00013443,2]
[382832803,1756752638259,-500.0,0.00013443,2]
[382832805,1756752638268,-500.0,0.00013443,2]
[382832807,1756752638277,-500.0,0.00013443,2]
[382832809,1756752638286,-500.0,0.00013443,2]
[382832810,1756752638295,-500.0,0.00013443,2]
[382832812,1756752638304,-500.0,0.00013443,2]
[382832814,1756752638314,-308.68655807,0.00013443,2]
[382832816,1756752638323,-500.0,0.00013443,2]
[382832819,1756752638333,-500.0,0.00013443,2]
[382832821,1756752638342,-500.0,0.00013443,2]
[382832823,1756752638351,-500.0,0.00013443,2]
[382832825,1756752638360,-500.0,0.00013443,2]
[382832827,1756752638370,-219.73319241,0.00013443,2]
[382832829,1756752638379,-58836.8341236,0.00013444,2]
[382832830,1756752638388,-866.81424054,0.00013498,2]
[382832833,1756752638398,-175946.56134723,0.00013498,2]
[382832834,1756752638407,-866.81424053,0.00013523,2]
[382832837,1756752638417,-866.81424053,0.00013549,2]
[382832838,1756752638426,-866.81424053,0.00013574,2]
[382832841,1756752638436,-2017.99636189,0.00013598,2]
[382832842,1756752638445,-151.0,0.00013598,2]
[382832845,1756752638455,-83137.34205292,0.00013598,2]
[382832847,1756752638464,-866.81424053,0.00013599,2]
[382832849,1756752638474,-500.0,0.00013673,2]
[382832850,1756752638483,-500.0,0.00013673,2]
[382832852,1756752638493,-500.0,0.00013673,2]
[382832854,1756752638502,-500.0,0.00013673,2]
[382832856,1756752638512,-500.0,0.00013673,2]
[382832858,1756752638521,-500.04548735,0.00013673,2]
[382832860,1756752638530,-500.0,0.00013673,2]
[382832862,1756752638540,-500.0,0.00013673,2]
[382832864,1756752638550,-500.0,0.00013673,2]
[382832866,1756752638559,-500.0,0.00013673,2]
[382832868,1756752638568,-500.0,0.00013673,2]
[382832870,1756752638578,-500.0,0.00013673,2]
[382832872,1756752638588,-500.0,0.00013673,2]
[382832874,1756752638598,-500.0,0.00013673,2]
[382832876,1756752638608,-500.0,0.00013673,2]
[382832878,1756752638617,-250.0,0.0001369,2]
[382832905,1756752638857,-300.0,0.0001369,2]
[382832907,1756752638869,-187.78006525,0.0001369,2]
[382832909,1756752638879,-151.0,0.0001369,2]
[382832911,1756752638889,-151.0,0.0001369,2]
[382832913,1756752638899,-300.0,0.0001369,2]
[382832915,1756752638908,-151.0,0.0001369,2]
[382832917,1756752638918,-198.0,0.0001369,2]
[382832919,1756752638927,-500.0,0.0001369,2]
[382832921,1756752638936,-480.0,0.00013698,2]
[382832923,1756752638946,-480.0,0.00013698,2]
[382832925,1756752638955,-509.36,0.00013698,2]
[382832927,1756752638966,-1417.58,0.00013698,2]
[382832929,1756752638976,-480.0,0.00013698,2]
[382832931,1756752638986,-480.0,0.00013698,2]
[382832933,1756752638996,-480.0,0.00013698,2]
[382832935,1756752639008,-480.0,0.00013698,2]
[382832938,1756752639022,-487.89,0.00013698,2]
[382832940,1756752639032,-480.0,0.00013698,2]
[382832942,1756752639041,-480.0,0.00013698,2]
[382832944,1756752639050,-480.0,0.00013698,2]
[382832946,1756752639059,-480.0,0.00013698,2]
[382832948,1756752639069,-151.0,0.00013698,2]
[382832950,1756752639078,-218.186019,0.00013698,2]
[382832952,1756752639088,-480.0,0.00013698,2]
[382832954,1756752639098,-480.0,0.00013698,2]
[382832956,1756752639108,-480.0,0.00013698,2]
[382832958,1756752639117,-494.35,0.00013698,2]
[382832960,1756752639127,-480.0,0.00013698,2]
[382832962,1756752639136,-480.0,0.00013698,2]
[382832964,1756752639146,-480.0,0.00013698,2]
[382832966,1756752639155,-480.0,0.00013698,2]
[382832968,1756752639165,-480.0,0.00013698,2]
[382832970,1756752639175,-480.0,0.00013698,2]
[382832972,1756752639184,-480.0,0.00013698,2]
[382832974,1756752639194,-480.0,0.00013698,2]
[382832976,1756752639203,-480.0,0.00013698,2]
[382832978,1756752639214,-480.0,0.00013698,2]
[382832980,1756752639225,-480.0,0.00013698,2]
[382832982,1756752639235,-480.0,0.00013698,2]
[382832984,1756752639243,-480.0,0.00013698,2]
[382832986,1756752639253,-480.0,0.00013698,2]
[382832988,1756752639262,-570.72,0.00013698,2]
[382832990,1756752639272,-480.0,0.00013698,2]
[382832992,1756752639282,-480.0,0.00013698,2]
[382832994,1756752639292,-480.0,0.00013698,2]
[382832996,1756752639301,-480.0,0.00013698,2]
[382832998,1756752639310,-480.0,0.00013698,2]
[382833000,1756752639319,-480.0,0.00013698,2]
[382833002,1756752639328,-480.0,0.00013698,2]
[382833004,1756752639337,-480.0,0.00013698,2]
[382833006,1756752639346,-480.0,0.00013698,2]
[382833008,1756752639355,-481.58385751,0.00013698,2]
[382833010,1756752639365,-480.0,0.00013698,2]
[382833012,1756752639374,-480.0,0.00013698,2]
[382833014,1756752639384,-480.0,0.00013698,2]
[382833016,1756752639393,-480.0,0.00013698,2]
[382833018,1756752639403,-480.0,0.00013698,2]
[382833020,1756752639412,-480.0,0.00013698,2]
[382833022,1756752639422,-480.0,0.00013698,2]
[382833024,1756752639431,-480.0,0.00013698,2]
[382833026,1756752639441,-480.0,0.00013698,2]
[382833028,1756752639450,-480.0,0.00013698,2]
[382833030,1756752639460,-417.5374559,0.00013698,2]
[382833032,1756752639472,-480.0,0.00013698,2]
[382833034,1756752639482,-480.0,0.00013698,2]
[382833036,1756752639492,-1000.0,0.00013698,2]
[382833038,1756752639502,-480.0,0.00013698,2]
[382833040,1756752639512,-480.0,0.00013698,2]
[382833042,1756752639521,-480.0,0.00013698,2]
[382833044,1756752639531,-480.0,0.00013698,2]
[382833046,1756752639540,-480.0,0.00013698,2]
[382833048,1756752639550,-480.0,0.00013698,2]
[382833050,1756752639560,-480.0,0.00013698,2]
[382833052,1756752639569,-480.0,0.00013698,2]
[382833054,1756752639579,-480.0,0.00013698,2]
[382833057,1756752639589,-480.0,0.00013698,2]
[382833059,1756752639598,-481.4254302,0.00013698,2]
[382833061,1756752639607,-480.0,0.00013698,2]
[382833063,1756752639616,-480.0,0.00013698,2]
[382833065,1756752639626,-480.0,0.00013698,2]
[382833067,1756752639635,-480.0,0.00013698,2]
[382833069,1756752639650,-480.0,0.00013698,2]
[382833071,1756752639660,-480.0,0.00013698,2]
[382833073,1756752639670,-480.0,0.00013698,2]
[382833075,1756752639679,-480.0,0.00013698,2]
[382833077,1756752639689,-480.0,0.00013698,2]
[382833079,1756752639699,-480.0,0.00013698,2]
[382833081,1756752639708,-480.0,0.00013698,2]
[382833083,1756752639719,-555.30853671,0.00013698,2]
[382833085,1756752639728,-480.0,0.00013698,2]
[382833087,1756752639737,-480.0,0.00013698,2]
[382833089,1756752639748,-519.49,0.00013698,2]
[382833091,1756752639757,-480.0,0.00013698,2]
[382833093,1756752639766,-480.0,0.00013698,2]
[382833095,1756752639776,-556.68,0.00013698,2]
[382833097,1756752639785,-480.0,0.00013698,2]
[382833099,1756752639794,-480.0,0.00013698,2]
[382833101,1756752639803,-480.0,0.00013698,2]
[382833103,1756752639813,-483.55721247,0.00013698,2]
[382833105,1756752639823,-480.0,0.00013698,2]
[382833107,1756752639832,-480.0,0.00013698,2]
[382833109,1756752639841,-480.0,0.00013698,2]
[382833111,1756752639851,-480.0,0.00013698,2]
[382833113,1756752639859,-480.0,0.00013698,2]
[382833115,1756752639867,-480.0,0.00013698,2]
[382833117,1756752639876,-480.0,0.00013698,2]
[382833119,1756752639885,-480.0,0.00013698,2]
[382833121,1756752639895,-490.05486214,0.00013698,2]
[382833123,1756752639903,-480.0,0.00013698,2]
[382833125,1756752639911,-480.0,0.00013698,2]
[382833127,1756752639921,-480.0,0.00013698,2]
[382833129,1756752639930,-480.0,0.00013698,2]
[382833132,1756752639939,-480.0,0.00013698,2]
[382833134,1756752639949,-480.0,0.00013698,2]
[382833136,1756752639956,-480.0,0.00013698,2]
[382833138,1756752639965,-480.0,0.00013698,2]